bitfinex/quotes_ETHUSD_20220118
["timestamp","ask_amount","ask_price","bid_price","bid_amount"]
[1642466732644,4.68203029,3225.9,3225.8,1.99665702]
[1642466733046,4.68203029,3225.9,3225.8,0.55633158]
[1642466733245,2.30228343,3225.9,3225.8,0.55633158]
[1642466735546,2.60228343,3225.9,3225.8,0.55633158]
[1642466736202,4.99023017,3225.9,3225.8,0.27781238]
[1642466736598,4.99023017,3225.9,3225.8,0.47053358]
[1642466737000,2.90228343,3225.9,3225.8,0.47053358]
[1642466737701,2.60968343,3225.9,3225.8,0.47053358]
[1642466738004,5.77498127,3225.9,3225.8,0.47053358]
[1642466738807,2.60228343,3225.9,3225.8,0.47053358]
[1642466739203,2.90228343,3225.9,3225.8,0.47053358]
[1642466739403,2.90228343,3225.9,3225.8,0.47480793]
[1642466741946,2.90228343,3225.9,3225.8,0.42480793]
[1642466742148,5.76728747,3225.9,3225.8,0.19699555]
[1642466742348,5.76728747,3225.9,3225.8,0.42480793]
[1642466742750,5.46728747,3225.9,3225.8,0.42480793]
[1642466743395,0.35273728,3225.9,3225.8,0.42480793]
[1642466744201,5.46728747,3225.9,3225.8,0.42480793]
[1642466744999,3.51774132,3225.9,3225.8,0.42480793]
[1642466745899,3.81774132,3225.9,3225.8,0.42480793]
[1642466746101,5.76728747,3225.9,3225.8,0.42480793]
[1642466746899,6.06728747,3225.9,3225.8,0.42480793]
[1642466747746,5.76728747,3225.9,3225.8,0.42480793]
[1642466748150,2.60228343,3225.9,3225.8,0.42480793]
[1642466748553,2.30228343,3225.9,3225.8,0.42480793]
[1642466748951,2.30228343,3225.9,3225.8,1.42480793]
[1642466750150,2.30228343,3225.9,3225.8,2.13364781]
[1642466750552,2.30228343,3225.9,3225.8,2.25754781]
[1642466750755,1.81913567,3225.9,3225.8,2.25754781]
[1642466752600,3.40231108,3225.9,3225.8,2.25754781]
[1642466752802,3.11261108,3225.9,3225.8,2.25754781]
[1642466753201,3.11261108,3225.9,3225.8,1.25754781]
[1642466753604,1.58317541,3225.9,3225.8,1.25754781]
[1642466754104,1.58317541,3225.9,3225.8,1.26116556]
[1642466755246,1.58317541,3225.9,3225.8,1.13726556]
[1642466756553,1.58317541,3225.9,3225.8,1.15903235]
[1642466757153,1.58317541,3225.9,3225.8,2.15903235]
[1642466757353,1.58317541,3225.9,3225.8,1.15903235]
[1642466758053,1.58317541,3225.9,3225.8,2.15903235]
[1642466758054,1.28557541,3225.9,3225.8,2.15903235]
[1642466759307,1.28557541,3225.9,3225.8,2.1554146]
[1642466761307,0.00254872,3226.0,3225.8,2.1554146]
[1642466761706,0.00254872,3226.0,3225.8,1.73488102]
[1642466761907,0.00254872,3226.0,3225.9,0.42053358]
[1642466762347,0.00368557,3226.0,3225.9,0.42053358]
[1642466762549,0.00368557,3226.0,3225.9,0.86753358]
[1642466762752,0.00368557,3226.0,3225.9,0.98673358]
[1642466762953,2.87430404,3226.6,3226.0,6.3]
[1642466763153,2.87430404,3226.6,3226.5,5.66255356]
[1642466763353,2.87430404,3226.6,3226.5,7.01965356]
[1642466763552,2.87430404,3226.6,3226.5,10.66785135]
[1642466763853,3.96592192,3227.1,3226.5,10.96785135]
[1642466764053,3.96592192,3227.1,3226.6,1.0]
[1642466764252,0.00568423,3227.0,3226.6,1.447]
[1642466764453,0.00568423,3227.0,3226.6,21.78405148]
[1642466764655,0.00511581,3226.9,3226.6,21.78405148]
[1642466765052,0.00454739,3226.8,3226.6,19.957]
[1642466765252,0.00454739,3226.8,3226.7,3.6239]
[1642466765452,3.96592192,3227.7,3226.7,3.9239]
[1642466765651,3.96592192,3227.7,3227.5,1.16356927]
[1642466765896,3.96592192,3228.1,3227.6,1.40371711]
[1642466766400,3.97785881,3228.1,3227.6,1.40371711]
[1642466767203,3.97785881,3228.1,3227.8,0.1927212]
[1642466767400,3.97785881,3228.1,3227.8,0.42053358]
[1642466768000,3.68655881,3228.1,3227.8,0.42053358]
[1642466768404,3.68655881,3228.1,3227.8,1.44983358]
[1642466768706,0.01193689,3228.1,3227.8,1.44983358]
[1642466768902,0.01193689,3228.1,3227.8,0.94631745]
[1642466769404,0.01193689,3228.1,3228.0,0.0040279]
[1642466771573,0.01193689,3228.1,3228.0,0.02524067]
[1642466772973,1.05848189,3228.3,3228.0,0.02524067]
[1642466774204,1.05848189,3228.3,3228.0,0.02907511]
[1642466774405,1.05848189,3228.3,3228.0,3.12907511]
[1642466774607,1.72076487,3228.2,3228.1,1.47669961]
[1642466775206,3.964617,3228.2,3228.1,1.47669961]
[1642466776409,7.6046,3228.6,3228.1,1.47669961]
[1642466776410,3.964617,3228.3,3228.1,1.47669961]
[1642466776609,3.964617,3228.3,3228.2,0.02116122]
[1642466776810,3.96575385,3228.3,3228.2,0.02116122]
[1642466778056,3.67385385,3228.3,3228.2,0.02116122]
[1642466779254,3.67385385,3228.3,3228.2,0.0290214]
[1642466779656,0.00113685,3228.3,3228.2,0.0290214]
[1642466780055,0.00113685,3228.3,3228.2,1.44040777]
[1642466780657,1.72190172,3228.3,3228.2,1.44040777]
[1642466780894,1.72190172,3228.3,3228.2,1.56430777]
[1642466781899,1.72190172,3228.3,3228.2,0.0290214]
[1642466783003,1.72190172,3228.3,3228.2,2.58615856]
[1642466783200,1.42990172,3228.3,3228.2,2.58615856]
[1642466783801,1.42990172,3228.3,3228.2,0.0290214]
[1642466784201,1.42990172,3228.3,3228.2,0.03252894]
[1642466784651,1.42990172,3228.3,3228.0,0.20121268]
[1642466784844,1.15768062,3228.2,3228.0,0.20121268]
[1642466785049,1.15768062,3228.2,3228.1,0.00113685]
[1642466786451,0.3,3228.3,3228.1,0.00113685]
[1642466786651,8.47034664,3228.4,3228.1,0.02103265]
[1642466786652,3.97034664,3228.4,3228.1,0.02103265]
[1642466786851,4.27034664,3228.4,3228.1,0.02103265]
[1642466787252,3.97034664,3228.3,3228.1,0.02103265]
[1642466788053,0.3,3228.4,3228.1,0.02103265]
[1642466788254,1.52267276,3228.6,3228.1,1.54870699]
[1642466788493,1.2273,3228.7,3228.1,1.54870699]
[1642466788693,0.00113684,3228.5,3228.1,1.54870699]
[1642466789302,0.00113684,3228.5,3228.2,0.00538589]
[1642466789303,0.00270197,3228.3,3228.2,0.00538589]
[1642466793248,0.94103881,3228.7,3228.6,1.37134197]
[1642466793453,1.56670923,3228.9,3228.6,1.37134197]
[1642466793648,0.00113685,3228.7,3228.6,1.37134197]
[1642466796604,0.00113685,3228.7,3228.6,1.39258246]
[1642466798209,1.71554605,3229.1,3228.6,1.39258246]
[1642466798409,0.13819997,3229.1,3228.6,1.39258246]
[1642466798612,0.00170527,3229.0,3228.6,1.39258246]
[1642466799010,0.00113685,3228.9,3228.6,1.39258246]
[1642466799311,0.00338789,3228.8,3228.6,1.39840439]
[1642466799744,2.8,3228.7,3228.5,1.25494349]
[1642466800343,3.1,3228.7,3228.5,1.25494349]
[1642466802149,3.1,3228.7,3228.5,2.71107548]
[1642466802355,0.00338789,3228.8,3228.6,1.0]
[1642466802550,0.00338789,3228.8,3228.7,0.1237]
[1642466802748,0.00338789,3228.8,3228.7,0.5707]
[1642466803402,6.39999488,3229.6,3228.7,0.5707]
[1642466803403,1.27463397,3229.4,3228.7,0.5707]
[1642466803602,1.27463397,3229.4,3229.3,2.71532828]
[1642466803804,1.27463397,3229.4,3229.3,3.80262828]
[1642466804604,2.53769488,3229.6,3229.3,3.80262828]
[1642466805105,1.49956821,3229.5,3229.3,4.00262828]
[1642466805504,0.00284212,3229.4,3229.3,4.00262828]
[1642466805706,0.00284212,3229.4,3229.3,4.12632828]
[1642466805905,0.00284212,3229.4,3229.3,5.12632828]
[1642466806310,0.00284212,3229.4,3229.3,5.57332828]
[1642466806507,3.13626057,3229.4,3229.3,5.57332828]
[1642466807009,3.13626057,3229.4,3229.3,5.12632828]
[1642466807464,3.97034664,3229.9,3229.5,5.5]
[1642466807667,3.97034664,3229.9,3229.6,1.5707]
[1642466807869,2.53769488,3230.2,3229.6,1.2397]
[1642466808067,2.53769488,3230.2,3229.8,0.03656046]
[1642466808272,0.12397,3230.3,3229.7,6.7184]
[1642466808273,0.00170527,3230.1,3229.7,6.7184]
[1642466808470,2.53769488,3231.1,3229.7,6.7184]
[1642466808471,3.80877172,3230.4,3229.9,2.49731516]
[1642466808672,3.80877172,3230.4,3229.9,3.24431516]
[1642466808874,0.00113685,3230.3,3229.9,2.79731516]
[1642466809070,0.00113685,3230.3,3230.0,1.0]
[1642466809271,0.00113685,3230.3,3230.0,1.9846]
[1642466809471,0.00113685,3230.3,3230.0,2.6175]
[1642466811508,0.00113685,3230.3,3230.2,0.02006081]
[1642466813707,0.97443685,3231.1,3230.7,2.59657903]
[1642466813907,0.1204,3231.0,3230.7,2.59657903]
[1642466814110,0.00341054,3230.9,3230.7,2.59657903]
[1642466814307,0.00341054,3230.9,3230.7,1.41127025]
[1642466814507,0.00284211,3230.8,3230.2,0.02597163]
[1642466814952,0.00227369,3230.7,3230.2,0.02597163]
[1642466815355,0.00170527,3230.6,3230.3,0.3]
[1642466815554,1.52047601,3230.9,3230.7,0.19829473]
[1642466815754,0.37160626,3231.0,3230.7,0.19829473]
[1642466815954,0.00170527,3230.9,3230.7,0.19829473]
[1642466816355,0.00113684,3230.8,3230.7,0.19829473]
[1642466817357,1.18238543,3230.8,3230.7,0.19829473]
[1642466818700,0.89008543,3230.8,3230.7,0.19829473]
[1642466819404,0.89008543,3230.8,3230.7,0.20418771]
[1642466819602,0.37160626,3231.0,3230.7,0.20418771]
[1642466821108,0.37160626,3231.0,3230.7,0.03306498]
[1642466821109,1.3476038,3230.9,3230.7,0.03306498]
[1642466821710,1.3476038,3230.9,3230.8,0.01993207]
[1642466823752,1.0527038,3230.9,3230.8,0.01993207]
[1642466824153,1.0527038,3230.9,3230.8,0.02582149]
[1642466825153,0.8527038,3230.9,3230.8,0.02582149]
[1642466826502,0.37160626,3231.0,3230.8,0.02582149]
[1642466826703,0.37160626,3231.0,3230.8,0.00588942]
[1642466827400,1.48350958,3231.0,3230.8,0.00588942]
[1642466828903,0.07950626,3231.0,3230.8,0.00588942]
[1642466829301,0.07950626,3231.0,3230.7,0.02581792]
[1642466832957,4.03784507,3230.9,3230.7,0.02581792]
[1642466833796,3.74784507,3230.9,3230.7,0.02581792]
[1642466834197,3.74784507,3230.9,3230.7,0.01993207]
[1642466837651,2.38543797,3230.8,3230.7,0.01993207]
[1642466838853,2.09373797,3230.8,3230.7,0.01993207]
[1642466839253,2.09373797,3230.8,3230.7,0.02582505]
[1642466840654,0.07950626,3231.0,3230.7,0.02582505]
[1642466844007,5.53353314,3231.2,3230.7,0.02582505]
[1642466844207,5.53353314,3231.2,3230.9,0.00588585]
[1642466844407,0.00170527,3231.1,3230.9,0.00588585]
[1642466844851,0.00113685,3231.0,3230.9,0.00588585]
[1642466846657,0.00113685,3231.0,3230.9,0.02595989]
[1642466847457,3.11275943,3231.0,3230.9,0.02595989]
[1642466848810,1.585297,3231.0,3230.9,0.02595989]
[1642466849010,1.292197,3231.0,3230.9,0.02595989]
[1642466849406,1.292197,3231.0,3230.9,0.02890282]
[1642466849609,5.9,3230.9,3229.8,0.1237]
[1642466849809,7.0546,3230.9,3229.8,0.1237]
[1642466850109,7.0546,3230.9,3229.9,0.00625266]
[1642466850110,2.9650543,3230.7,3229.9,0.00625266]
[1642466850309,1.13460072,3230.0,3229.9,0.00625266]
[1642466850509,1.453675,3230.0,3229.9,0.00625266]
[1642466850717,1.133,3230.5,3229.9,0.00625266]
[1642466851110,0.3,3230.4,3229.9,0.00625266]
[1642466851508,1.10293091,3230.2,3229.9,0.00625266]
[1642466851909,1.40293091,3230.2,3229.9,0.00625266]
[1642466852350,0.27267194,3230.0,3229.9,0.00625266]
[1642466852852,1.81083647,3230.0,3229.9,0.00625266]
[1642466853257,0.27267194,3230.0,3229.9,0.00625266]
[1642466854053,1.07990285,3230.2,3229.9,0.00625266]
[1642466854254,0.00202876,3230.0,3229.9,0.01292776]
[1642466854859,1.16245582,3230.0,3229.9,0.01292776]
[1642466858604,0.26626218,3229.8,3229.3,1.44834479]
[1642466859004,0.26626218,3229.8,3229.4,0.00284211]
[1642466859204,1.13414676,3230.0,3229.9,0.0066751]
[1642466859651,0.00202876,3230.0,3229.9,0.0066751]
[1642466860856,1.58658232,3230.0,3229.9,0.0066751]
[1642466862456,0.35712562,3230.0,3229.9,0.0066751]
[1642466864307,0.06344718,3230.0,3229.6,1.41968752]
[1642466864506,0.06344718,3230.0,3229.7,1.39733941]
[1642466864706,0.06344718,3230.0,3229.7,1.39847625]
[1642466864906,0.06344718,3230.0,3229.7,0.00113684]
[1642466865607,1.58468157,3229.9,3229.5,0.00227369]
[1642466866215,1.55389803,3229.8,3229.5,0.00227369]
[1642466867350,1.85389803,3229.8,3229.5,0.00227369]
[1642466867751,3.4385796,3229.8,3229.5,0.00227369]
[1642466868151,1.85389803,3229.8,3229.5,0.00227369]
[1642466868353,2.37624023,3229.7,3229.5,0.00227369]
[1642466869152,2.37624023,3229.6,3229.5,0.00227369]
[1642466869451,2.08434023,3229.6,3229.5,0.00227369]
[1642466871505,1.29064079,3229.7,3229.5,0.00227369]
[1642466871705,1.29064079,3229.7,3229.3,0.00341054]
[1642466872107,1.47251413,3229.4,3228.9,1.35544236]
[1642466872406,1.47251413,3229.4,3229.0,0.12881581]
[1642466872606,1.47251413,3229.4,3229.0,0.00511581]
[1642466872806,1.47251413,3229.4,3229.1,0.00454739]
[1642466873005,1.42251413,3229.4,3228.9,0.00568423]
[1642466873208,3.01332626,3229.4,3228.9,0.00568423]
[1642466873709,0.36723442,3229.0,3228.9,0.00568423]
[1642466874507,0.06843442,3229.0,3228.9,0.00568423]
[1642466877157,0.06843442,3229.0,3228.9,0.12938423]
[1642466878255,0.06843442,3229.0,3228.9,0.00568423]
[1642466878805,0.06843442,3229.0,3228.8,0.00625266]
[1642466879010,0.06843442,3229.0,3228.9,1.34693144]
[1642466879204,0.06843442,3229.0,3228.9,1.35338609]
[1642466879406,1.34498868,3229.0,3228.9,2.73273862]
[1642466879607,1.05038868,3229.0,3228.9,2.73273862]
[1642466880208,1.05038868,3229.0,3228.9,1.38580718]
[1642466881012,1.59081213,3229.3,3228.9,0.01213888]
[1642466881215,1.52556173,3229.4,3228.9,0.01213888]
[1642466881412,1.52556173,3229.4,3229.0,0.00511581]
[1642466884257,1.24401891,3229.5,3229.2,0.00643858]
[1642466884656,1.2217,3229.6,3229.3,0.00341054]
[1642466885459,1.2217,3229.6,3229.3,1.17843294]
[1642466885912,1.52454407,3229.8,3229.3,1.17843294]
[1642466886405,1.52454407,3229.8,3229.4,1.39384712]
[1642466886812,1.52454407,3229.8,3229.5,0.00227369]
[1642466889208,1.52454407,3229.8,3229.7,0.0064118]
[1642466889658,1.52454407,3229.8,3229.7,0.00754864]
[1642466889859,1.22784407,3229.8,3229.7,0.00754864]
[1642466892966,1.52784407,3229.8,3229.7,0.00754864]
[1642466895105,1.22274407,3229.8,3229.7,0.00754864]
[1642466895509,3.60188272,3229.8,3229.7,0.00754864]
[1642466896311,1.22274407,3229.8,3229.7,0.00754864]
[1642466897556,10.04948583,3230.0,3229.7,0.00754864]
[1642466897956,6.29058583,3230.0,3229.7,0.00754864]
[1642466898158,2.37913865,3229.9,3229.7,0.00754864]
[1642466898958,3.95045916,3230.0,3229.7,0.00754864]
[1642466899357,3.95045916,3230.0,3229.9,0.00697983]
[1642466899557,2.44258583,3230.0,3229.9,0.00697983]
[1642466900259,2.14878583,3230.0,3229.9,0.00697983]
[1642466902005,0.33945117,3230.0,3229.9,0.00697983]
[1642466904110,0.33945117,3230.0,3229.7,0.00811667]
[1642466904310,1.740818,3230.0,3229.7,0.00811667]
[1642466905150,1.449718,3230.0,3229.7,0.00811667]
[1642466905351,1.28004438,3229.8,3229.7,0.00811667]
[1642466906254,1.58004438,3229.8,3229.7,0.00811667]
[1642466906655,3.1545551,3229.8,3229.7,0.00811667]
[1642466908410,6.7617551,3229.8,3228.5,0.1237]
[1642466908606,1.2046,3229.7,3228.3,2.1237]
[1642466908805,1.6516,3229.7,3228.6,0.00625266]
[1642466909006,1.1467192,3228.7,3228.6,0.00625266]
[1642466909204,9.7215,3229.7,3228.6,0.00625266]
[1642466909609,8.7215,3229.7,3228.7,0.01262822]
[1642466910008,8.7215,3229.7,3228.8,0.00511582]
[1642466910216,8.431,3229.7,3228.8,0.00511582]
[1642466910409,1.37546127,3229.6,3228.8,0.00511582]
[1642466910609,1.53124664,3228.9,3228.8,0.00511582]
[1642466910812,1.53124664,3228.9,3228.8,0.12881582]
[1642466911010,1.53124664,3228.9,3228.8,1.40417257]
[1642466912011,1.17455484,3229.3,3228.8,1.40417257]
[1642466912254,1.57405619,3229.5,3228.8,1.40417257]
[1642466912453,1.57405619,3229.6,3228.9,0.00454739]
[1642466913254,1.18077909,3229.0,3228.9,0.00454739]
[1642466914456,1.46062711,3229.3,3228.9,0.00454739]
[1642466915056,0.31762664,3229.1,3228.9,0.00454739]
[1642466915258,0.02432664,3229.1,3228.9,0.00454739]
[1642466915913,1.2106499,3229.0,3228.9,0.00454739]
[1642466916706,2.53704164,3229.0,3228.9,0.00454739]
[1642466919307,2.54269048,3229.0,3228.9,0.00454739]
[1642466920357,2.25049048,3229.0,3228.9,0.00454739]
[1642466923605,2.25049048,3229.0,3228.3,0.00795793]
[1642466923807,2.25049048,3229.0,3228.4,0.1237]
[1642466924207,2.25049048,3229.0,3228.9,0.00670064]
[1642466924608,2.25049048,3229.0,3228.9,0.01124803]
[1642466924810,0.92409874,3229.0,3228.9,0.01124803]
[1642466925409,0.63029874,3229.0,3228.9,0.01124803]
[1642466927854,2.20435493,3229.0,3228.9,0.01124803]
[1642466928664,2.20435493,3229.0,3228.0,8.99865324]
[1642466928665,4.8,3228.9,3228.0,1.57865324]
[1642466928859,2.447,3228.8,3228.0,1.57865324]
[1642466929057,3.747,3228.8,3228.1,0.00454739]
[1642466929457,3.747,3228.8,3228.1,0.46175206]
[1642466929660,1.34168122,3228.4,3228.1,0.46175206]
[1642466929861,0.447,3228.4,3228.2,0.00397897]
[1642466930060,0.1239,3228.3,3228.2,0.00397897]
[1642466930259,0.1239,3228.9,3228.2,0.00397897]
[1642466930460,2.36108429,3228.5,3228.2,0.00397897]
[1642466930762,2.36108429,3228.5,3228.3,1.537976]
[1642466931014,2.36108429,3228.5,3228.3,2.71153226]
[1642466931221,2.36108429,3228.5,3228.4,0.00284212]
[1642466932621,0.1239,3229.0,3228.4,0.00284212]
[1642466934020,2.52298608,3229.1,3228.4,0.00284212]
[1642466934218,2.82298608,3229.1,3228.4,0.00284212]
[1642466934419,2.52298608,3229.1,3228.4,0.00284212]
[1642466934651,2.82298608,3229.1,3228.4,0.00284212]
[1642466934852,2.52298608,3229.1,3228.4,0.00284212]
[1642466935054,1.37662664,3229.1,3228.4,2.24911077]
[1642466935254,1.37662664,3229.1,3228.5,0.01272715]
[1642466935255,1.2286,3229.1,3228.5,0.01272715]
[1642466935454,0.9389,3229.1,3228.5,0.01500085]
[1642466935652,0.9389,3229.1,3228.6,0.00170527]
[1642466935853,4.0142,3229.4,3228.6,0.00170527]
[1642466936057,3.8905,3229.4,3229.0,1.48537842]
[1642466936258,0.00113684,3229.1,3229.0,1.48537842]
[1642466936657,0.00341054,3229.5,3229.0,1.48537842]
[1642466936859,0.00341054,3229.5,3229.0,3.41437347]
[1642466937056,0.00284212,3229.4,3229.0,3.41437347]
[1642466937458,0.00227369,3229.3,3229.0,3.41437347]
[1642466937657,0.00227369,3229.3,3229.0,1.48537842]
[1642466937857,0.00170527,3229.2,3229.0,1.48537842]
[1642466938259,0.00341054,3229.5,3229.0,1.48537842]
[1642466938708,0.00284212,3229.4,3229.0,1.48537842]
[1642466939211,0.00227369,3229.3,3229.0,1.48537842]
[1642466939609,2.53448658,3229.6,3229.0,1.48537842]
[1642466939610,0.00170527,3229.2,3229.0,1.48537842]
[1642466940007,0.00341054,3229.5,3229.0,1.48537842]
[1642466940412,0.00284212,3229.4,3229.0,1.48537842]
[1642466940610,1.77017743,3229.5,3229.0,3.44549707]
[1642466940810,1.77017743,3229.5,3229.1,0.12540527]
[1642466941217,1.77017743,3229.5,3229.2,0.00113685]
[1642466941412,0.1237,3229.4,3229.2,0.00113685]
[1642466941814,0.1237,3229.6,3229.2,0.00113685]
[1642466942010,0.4237,3229.6,3229.2,0.00113685]
[1642466942281,0.42483684,3229.6,3229.2,0.00113685]
[1642466943182,1.17854734,3229.5,3229.2,0.00113685]
[1642466943483,0.1237,3229.4,3229.2,0.00113685]
[1642466945383,1.36711179,3229.4,3229.2,0.00113685]
[1642466945783,0.33358,3229.4,3229.2,0.00113685]
[1642466946216,0.03358,3229.4,3229.2,0.00113685]
[1642466947213,0.30113684,3229.6,3229.2,0.00113685]
[1642466947614,3.11162258,3229.4,3229.2,0.00113685]
[1642466947813,3.41162258,3229.4,3229.2,0.00113685]
[1642466950965,3.11212258,3229.4,3229.2,0.00113685]
[1642466951163,3.11162258,3229.4,3229.2,0.00113685]
[1642466952169,3.11162258,3229.4,3229.2,0.03427502]
[1642466952665,0.00113684,3229.6,3229.2,0.00113685]
[1642466952666,2.36432673,3229.3,3229.2,0.00113685]
[1642466953513,2.36432673,3229.5,3229.2,1.32504813]
[1642466954113,2.36432673,3229.5,3229.2,0.00113685]
[1642466954513,1.57893786,3229.3,3229.2,0.00113685]
[1642466955317,2.36432673,3229.4,3229.2,0.00113685]
[1642466955520,3.48725288,3229.4,3229.2,0.00113685]
[1642466956126,3.18885288,3229.4,3229.2,0.00113685]
[1642466956324,3.18885288,3229.4,3229.1,0.07483685]
[1642466956525,1.12292615,3229.4,3228.9,1.47535443]
[1642466957038,1.12292615,3229.4,3229.0,0.00113685]
[1642466958063,1.58112951,3229.1,3229.0,0.00113685]
[1642466958865,1.12292615,3229.4,3229.0,0.00113685]
[1642466960770,1.12292615,3229.4,3228.9,0.00170527]
[1642466961222,0.82982615,3229.4,3228.9,0.00170527]
[1642466961619,2.14142091,3229.3,3228.9,0.50368141]
[1642466961820,2.14142091,3229.3,3229.0,1.23344637]
[1642466963822,1.57713772,3229.5,3229.0,1.23344637]
[1642466964221,0.00113684,3229.4,3229.0,1.23344637]
[1642466964665,1.57827456,3229.4,3229.0,1.23344637]
[1642466965566,0.00113684,3229.4,3229.3,1.41551929]
[1642466966170,1.28807456,3229.5,3229.3,1.41551929]
[1642466966973,2.14142091,3229.6,3229.3,1.41551929]
[1642466967176,2.36570975,3230.1,3229.4,2.09816264]
[1642466967572,0.00170528,3229.7,3229.4,3.09816264]
[1642466967875,0.00113685,3229.6,3229.4,3.09816264]
[1642466968172,0.00341055,3230.0,3229.5,1.61642414]
[1642466968433,0.00341055,3230.0,3229.9,1.43585161]
[1642466968622,2.36570975,3230.1,3229.6,1.87837837]
[1642466968819,0.00341055,3230.0,3229.7,0.1237]
[1642466969119,0.00284212,3229.9,3229.6,1.1237]
[1642466969518,0.0022737,3229.8,3229.6,0.1237]
[1642466969717,0.0022737,3229.8,3229.6,1.1237]
[1642466969920,0.00170528,3229.7,3229.6,1.1237]
[1642466971224,2.21788172,3230.1,3229.6,1.1237]
[1642466971422,3.70260975,3230.4,3229.6,1.0]
[1642466971626,0.00170527,3230.0,3229.7,0.1237]
[1642466972025,0.00113684,3229.9,3229.7,0.1237]
[1642466972466,3.57890975,3230.4,3229.7,0.1237]
[1642466972467,0.00341054,3230.3,3229.7,0.1237]
[1642466972869,0.00284211,3230.2,3229.3,0.1237]
[1642466973069,0.00284211,3230.2,3229.3,0.4237]
[1642466973268,0.00227369,3230.1,3229.4,0.00170527]
[1642466973468,0.00227369,3230.1,3229.5,0.1237]
[1642466973669,1.45344631,3230.0,3229.5,1.28138768]
[1642466974069,2.36912029,3230.3,3229.5,2.58138768]
[1642466974070,0.00113684,3229.9,3229.5,2.58138768]
[1642466974270,0.00113684,3229.9,3229.6,1.92611237]
[1642466974469,0.00284211,3230.2,3229.7,0.1237]
[1642466974870,0.00227369,3230.1,3229.6,0.1237]
[1642466975270,1.35185062,3230.1,3229.6,0.1237]
[1642466975471,1.35185062,3230.1,3229.6,1.1237]
[1642466975774,0.00284211,3230.2,3229.6,0.1237]
[1642466976019,1.58509874,3230.2,3229.6,1.1237]
[1642466976220,0.00227369,3230.1,3229.6,1.1237]
[1642466976420,1.28373032,3230.2,3229.6,1.1237]
[1642466976620,0.11255642,3230.1,3229.7,0.00227369]
[1642466977319,2.47826617,3230.1,3229.7,0.47469799]
[1642466977520,2.47826617,3230.1,3229.7,0.77469799]
[1642466977723,2.47826617,3230.1,3229.8,0.00170527]
[1642466979523,2.47826617,3230.1,3229.8,0.47412957]
[1642466979524,2.36570975,3230.0,3229.8,0.47412957]
[1642466979968,2.36570975,3230.0,3229.9,0.00113685]
[1642466980367,1.29657653,3230.0,3229.9,0.00113685]
[1642466980766,1.29657653,3230.0,3229.8,0.00170527]
[1642466981570,0.95341251,3230.0,3229.7,0.00227369]
[1642466982171,3.11162258,3230.2,3229.7,0.00227369]
[1642466982371,2.38583388,3230.0,3229.7,0.00227369]
[1642466983623,3.91261942,3230.0,3229.7,0.00227369]
[1642466985022,2.14536826,3229.9,3229.7,0.00227369]
[1642466985821,1.59054002,3229.8,3229.7,0.00227369]
[1642466986623,1.29814002,3229.8,3229.7,0.00227369]
[1642466987024,3.44350828,3229.8,3229.7,0.00227369]
[1642466987467,3.44350828,3229.8,3229.5,0.00341054]
[1642466987966,3.6721538,3230.0,3229.5,0.47583484]
[1642466988165,5.16231966,3230.0,3229.5,0.47583484]
[1642466988367,3.9721538,3230.0,3229.6,0.00284212]
[1642466988567,2.38975798,3230.0,3229.6,0.00284212]
[1642466988870,2.14536826,3229.9,3229.6,0.00284212]
[1642466989768,1.26570752,3229.8,3229.6,0.00284212]
[1642466990268,2.14536826,3229.9,3229.6,0.00284212]
[1642466991719,1.85036826,3229.9,3229.6,0.00284212]
[1642466992521,1.4103054,3230.1,3229.6,0.00284212]
[1642466992722,1.4103054,3230.1,3229.5,0.00341054]
[1642466992921,1.4103054,3230.1,3229.4,0.00397896]
[1642466993324,1.4103054,3230.1,3229.4,1.28145577]
[1642466993526,1.4103054,3230.1,3229.4,2.28145577]
[1642466993724,1.4103054,3230.1,3229.5,1.89420043]
[1642466993925,1.4103054,3230.1,3229.5,0.00341054]
[1642466994128,1.4103054,3230.1,3229.6,0.00284212]
[1642466994327,1.4103054,3230.1,3229.5,1.89851205]
[1642466994528,1.4103054,3230.1,3229.6,0.00284212]
[1642466995572,1.52418415,3230.2,3229.6,0.00284212]
[1642466996777,1.23168415,3230.2,3229.6,0.00284212]
[1642466997776,1.33708912,3230.3,3229.7,1.16624697]
[1642466998177,1.33708912,3230.3,3229.8,0.00170527]
[1642466998819,1.33708912,3230.3,3229.6,0.00284212]
[1642466999820,1.33708912,3230.3,3229.7,1.49869068]
[1642467000122,1.33708912,3230.3,3229.8,0.00170527]
[1642467001022,0.1237,3230.3,3229.8,0.00170527]
[1642467001222,0.1237,3230.3,3229.9,0.03350447]
[1642467001422,2.55977362,3230.4,3229.8,0.00170527]
[1642467001824,2.26881047,3230.4,3229.8,0.00170527]
[1642467002027,2.26881047,3230.4,3229.8,0.00284212]
[1642467003069,0.92223685,3230.4,3229.8,0.00284212]
[1642467004270,0.92223685,3230.4,3230.0,1.50199728]
[1642467004475,0.1237,3230.5,3230.0,1.50199728]
[1642467004676,0.1237,3230.5,3230.1,0.00113685]
[1642467006723,0.1237,3230.6,3230.1,0.00113685]
[1642467006921,3.4536,3230.7,3230.1,0.00113685]
[1642467007125,2.38583388,3230.4,3230.2,0.03634208]
[1642467007326,2.38583388,3230.4,3230.1,0.00113685]
[1642467008526,2.38583388,3230.4,3230.2,1.11403525]
[1642467008926,2.38583388,3230.4,3230.2,1.41403525]
[1642467009427,2.38583388,3230.4,3230.3,2.12685626]
[1642467009680,9.3924,3231.2,3230.3,2.12685626]
[1642467009681,2.38437613,3232.3,3230.4,3.8792876]
[1642467009882,6.20477613,3232.3,3231.5,5.61267298]
[1642467010078,2.38437613,3232.2,3231.5,7.85207298]
[1642467010278,2.38437613,3232.2,3231.5,9.40142002]
[1642467010777,2.38437613,3232.2,3231.5,10.72965961]
[1642467010983,2.38437613,3232.2,3231.5,5.12965961]
[1642467011379,2.38437613,3232.2,3231.5,4.31395961]
[1642467012080,4.9894959,3231.6,3231.5,4.30128663]
[1642467012280,3.8204,3232.3,3231.5,4.30128663]
[1642467012482,3.8204,3232.3,3231.6,0.1237]
[1642467012679,3.8204,3232.3,3231.6,1.1237]
[1642467012881,0.71345265,3231.7,3231.6,1.1237]
[1642467013429,0.00625265,3231.7,3231.6,1.1237]
[1642467014025,0.00625265,3231.7,3231.6,3.7177155]
[1642467014226,0.00625265,3231.7,3231.6,3.72696337]
[1642467014828,0.00625265,3231.7,3231.6,4.20500498]
[1642467015628,0.00625265,3231.7,3231.6,4.17396337]
[1642467017480,1.29195467,3232.1,3231.6,4.17396337]
[1642467017880,0.00170528,3232.0,3231.6,4.17396337]
[1642467018180,0.00113685,3231.9,3231.6,4.17396337]
[1642467018785,0.00113685,3231.9,3231.7,2.5940155]
[1642467018989,0.00113685,3231.9,3231.8,0.1237]
[1642467019184,0.00113685,3231.9,3231.8,1.1237]
[1642467019384,0.00113685,3231.9,3231.8,0.13295198]
[1642467019585,0.00113685,3231.9,3231.8,1.13295198]
[1642467019785,0.00113685,3231.9,3231.8,3.60326748]
[1642467020190,0.00113685,3231.9,3231.8,2.60326748]